[Event "European Women-ch 2023"]
[Site "Petrovac"]
[Date "2023.03.18"]
[Round "1.3"]
[White "Milliet, Sophie"]
[Black "Allahverdiyeva, Ayan"]
[Result "1-0"]
[ECO "B81"]
[WhiteElo "2404"]
[BlackElo "2124"]
[Annotator "TA"]
[PlyCount "128"]
[EventDate "2023.03.15"]
[EventType "swiss"]
[EventCountry "MNE"]
[SourceTitle "playchess.com"]
[Source "ChessBase"]
[SourceQuality "1"]
[TimeControl "40/5400+30:1800+30"]

{[%evp 12,128,11,26,27,32,33,41,33,34,28,31,41,15,37,17,65,65,56,13,7,13,12,0,30,0,85,91,115,121,143,135,139,138,139,137,187,158,172,167,184,171,172,160,163,125,126,126,126,117,116,109,106,107,110,95,97,98,106,0,96,97,104,104,104,94,98,67,102,77,139,128,162,110,127,123,135,135,267,260,251,245,268,188,193,182,435,434,29966,29963,29967,29967,29968,29969,29968,29969,29962,29960,29958,29958,8403,6974,6095,155,29962,29971,29966,285,29959,231,29979,29980,29980,29981,29981,29962,29990,29991,29993]} 1. e4 {[%emt 0:00:05]} c5 {[%emt 0:01:20]} 2. Nf3 {[%emt 0:00:12]} d6 {[%emt 0:00:12]} 3. d4 {[%emt 0:00:08]} cxd4 {[%emt 0:00:04]} 4. Nxd4 {[%emt 0:00:04]} Nf6 {[%emt 0:00:05]} 5. Nc3 {[%emt 0:00:04]} a6 {[%emt 0:00:02]} 6. h3 {[%emt 0:00:35]} e6 {[%emt 0:00:34]} 7. g4 {[%emt 0:00:10][%cal Bg2g4,Bg4g5][%mdl 32]} Be7 {[%emt 0:00:05] B81: Sicilian Scheveningen: Keres Attack.} 8. g5 {[%emt 0:00:10]} Nfd7 {[%emt 0:00:05]} 9. Be3 {[%emt 0:00:27]} b5 {[%emt 0:00:40] White is slightly better.} (9... Bxg5 10. Nxe6 fxe6 11. Qh5+ (11. Qxd6 $2 Qe7 $19) 11... g6 12. Qxg5 $16) 10. a3 {[%emt 0:00:13]} Bb7 {[%emt 0:00:05]} ({But not} 10... Bxg5 11. Nxe6 fxe6 12. Qh5+ (12. Qxd6 $2 Qe7 $19) 12... g6 13. Qxg5 $16) 11. h4 {[%emt 0:00:13]} O-O {[%emt 0:00:56]} 12. Qd2 {[%emt 0:07:17]} Nc6 {[%emt 0:02:35]} 13. O-O-O {[%emt 0:00:41]} Nc5 {[%emt 0:00:35]} (13... Nxd4 $11 {should be considered.} 14. Bxd4 Rc8) 14. f3 $1 $14 {[%emt 0:00:37]} Rb8 {[%emt 0:00:18]} 15. Nxc6 {[%emt 0:02:09]} Bxc6 {[%emt 0:00:06]} 16. b4 {[%emt 0:00:16]} Nd7 {[%emt 0:00:13]} 17. h5 $36 {[%emt 0:00:31][%mdl 2048] White has some pressure.} Qc7 $1 {[%emt 0:04:21]} 18. g6 {[%emt 0:04:16] [#]} Bf6 $146 {[%emt 0:01:38]} (18... Ne5 $11) ({Predecessor:} 18... Bb7 19. h6 fxg6 20. Bh3 Rf6 21. hxg7 Kxg7 22. f4 h5 23. Kb1 Nb6 24. Qd3 Nc4 25. Bc1 a5 26. Nxb5 Qc8 27. Bf1 d5 28. Qg3 axb4 29. e5 {1-0 Castle Jr,T (2147)-Villeneuve,R (2143) WZ-ch MC/03/00 email 2019}) 19. Qxd6 $16 {[%emt 0:14:58]} Qxd6 {[%emt 0:15:19]} 20. Rxd6 {[%emt 0:00:05]} Rfc8 {[%emt 0:07:46] [#]} 21. Nd5 {[%emt 0:10:40][%mdl 512] White is much more active.} exd5 {[%emt 0:14:30]} 22. gxf7+ {[%emt 0:01:18]} (22. exd5 Bxd5 23. Rxd5 (23. Rxd7 Rd8 $14) 23... Ne5 $16) 22... Kxf7 {[%emt 0:16:11]} 23. exd5 {[%emt 0:00:10]} Nb6 {[%emt 0:02:08]} (23... Ne5 $16) 24. dxc6 $18 {[%emt 0:08:36][%cal Oc6c7] Strongly threatening c7!} Be7 {[%emt 0:00:05] [#] Against c7} 25. c7 $1 {[%emt 0:06:11]} Bxd6 {[%emt 0:00:04]} 26. cxb8=Q {[%emt 0:00:12]} ({Don't play} 26. cxb8=R Rxb8 27. Bd4 Nd5) 26... Rxb8 {[%emt 0:00:01]} 27. Bd3 {[%emt 0:03:49]} Be5 {[%emt 0:09:21]} 28. Bxb6 {[%emt 0:26:48]} Rxb6 {[%emt 0:00:29]} 29. Bxh7 {[%emt 0:00:05][%mdl 4096] Endgame KRB-KRB} a5 {[%emt 0:03:58]} 30. bxa5 {[%emt 0:03:08]} Ra6 {[%emt 0:00:06]} 31. Rd1 {[%emt 0:00:35]} Rxa5 {[%emt 0:06:05]} 32. Rd3 {[%emt 0:00:34]} Ke7 {[%emt 0:02:48]} 33. Rb3 {[%emt 0:08:01]} Bd6 {[%emt 0:00:20]} 34. Kb2 {[%emt 0:00:08]} Be5+ {[%emt 0:00:39]} 35. Kc1 {[%emt 0:00:14]} (35. c3 $16) 35... Kd6 {[%emt 0:02:15]} (35... Bd6 $11 {keeps the balance.}) 36. Bd3 {[%emt 0:00:44]} Kc5 {[%emt 0:01:19]} 37. Kd2 {[%emt 0:00:44]} Bf4+ {[%emt 0:01:16]} 38. Ke2 {[%emt 0:01:19]} Bc1 {[%emt 0:01:29]} 39. Kf2 {[%emt 0:01:00]} Kc6 {[%emt 0:07:11]} 40. Kg3 {[%emt 0:00:00]} Kc5 {[%emt 0:00:00]} ({Black should play} 40... Bxa3 41. Be4+ Kd7) 41. Kg4 {[%emt 0:12:48]} Kc6 {[%emt 0:03:22]} 42. Be4+ {[%emt 0:05:39]} (42. f4 $18) 42... Kd6 {[%emt 0:02:50]} 43. Rd3+ {[%emt 0:03:21]} Kc7 {[%emt 0:04:45]} 44. Rd5 {[%emt 0:05:26]} Bxa3 {[%emt 0:01:40]} (44... Kb6 $16 {was called for.} 45. Rd6+ Kc7 46. Rc6+ Kd7) 45. Rg5 {[%emt 0:00:50]} Bb2 {[%emt 0:00:15] [#]} 46. c3 $1 {[%emt 0:03:00][%mdl 512]} Kd6 {[%emt 0:00:42]} (46... Kd8 47. Rxg7) 47. c4 {[%emt 0:01:02]} Ra1 {[%emt 0:00:56]} 48. cxb5 {[%emt 0:01:37] aiming for b6.} Rg1+ $2 {[%emt 0:04:50]} (48... Ke6 {might work better.}) 49. Kf5 {[%emt 0:00:07]} Rxg5+ {[%emt 0:00:04]} (49... Rh1 $18 50. b6 Bf6) 50. Kxg5 {[%emt 0:00:04] KB-KB} Bd4 {[%emt 0:00:02]} 51. Kg6 {[%emt 0:01:36]} Ke7 {[%emt 0:01:42]} 52. f4 {[%emt 0:00:34]} Kf8 {[%emt 0:01:06]} 53. Bd3 {[%emt 0:00:24]} Be3 {[%emt 0:02:03]} 54. Kf5 {[%emt 0:01:55]} Ke7 {[%emt 0:00:32]} 55. Ke4 {[%emt 0:00:13]} Bf2 {[%emt 0:00:05]} 56. Kd5 {[%emt 0:00:07]} Kf6 {[%emt 0:00:15]} 57. Bg6 $2 {[%emt 0:00:58]} (57. Kc6 $18 {and the rest is easy. Bg6 would kill now.} Bg3 58. f5) 57... Bg3 $2 {[%emt 0:00:44] [#] Loses the game.} (57... Be3 $16 58. Kd6 Bxf4+ 59. Kd7 Be3) 58. f5 $1 {[%emt 0:00:04]} Ke7 {[%emt 0:01:31]} 59. Kc6 $2 {[%emt 0:00:03]} (59. b6 Bf4 60. Kc6 Kd8 61. Kb7 Be3 62. h6 {[%mdl 64] Promotion} Bxh6 63. Kb8 Ke7 64. b7) 59... Bf4 $2 {[%emt 0:00:18]} (59... Be5 $18 60. Kb7 Kd8) 60. b6 $2 {[%emt 0:00:16]} (60. Kb7 {mates} Kd7 61. b6 Be3 62. h6 {[%mdl 64] Promotion} Bxh6 63. Ka8 Bf4 64. b7 Bd6 65. b8=Q) 60... Bg3 $2 {[%emt 0:00:42]} (60... Kd8 $18 61. Bf7 Ke7) 61. Kb7 {[%emt 0:01:19] White mates.} Bf2 {[%emt 0:00:06]} 62. Kc7 {[%emt 0:02:01]} Bg3+ {[%emt 0:00:01]} 63. Kc6 Kd8 {[%emt 0:00:01] [#]} 64. f6 $1 {[%emt 0:00:14]} Bf4 {Artfully played by Milliet.   Weighted Error Value: White=0.10 (very precise) /Black=0.31} (64... gxf6 65. h6) 1-0

[Event "European Women-ch 2023"]
[Site "Petrovac"]
[Date "2023.03.18"]
[Round "1.3"]
[White "Zimina, Olga"]
[Black "Bluebaum, Johanna"]
[Result "1-0"]
[ECO "C00"]
[WhiteElo "2295"]
[BlackElo "1954"]
[Annotator "TA"]
[PlyCount "91"]
[EventDate "2023.03.15"]
[EventType "swiss"]
[EventCountry "MNE"]
[SourceTitle "playchess.com"]
[Source "ChessBase"]
[SourceQuality "1"]
[TimeControl "40/5400+30:1800+30"]

{[%evp 9,91,0,10,9,22,27,30,25,37,22,33,23,32,47,79,77,132,125,138,126,144,141,190,189,281,260,254,214,262,247,249,238,364,348,482,319,274,278,266,235,252,165,321,218,344,356,358,242,314,328,448,260,289,153,225,135,306,314,329,270,364,275,288,236,403,374,314,228,218,195,200,97,683,676,604,560,537,544,661,712,814,604,29994,29995]} 1. e4 {[%emt 0:00:06]} e6 {[%emt 0:00:05]} 2. Qe2 {[%emt 0:00:07]} c5 {[%emt 0:01:51]} 3. g3 {[%emt 0:00:05]} Nc6 {[%emt 0:00:14]} 4. Nf3 {[%emt 0:00:26]} d6 {[%emt 0:04:08]} 5. Bg2 {[%emt 0:00:13]} Be7 {[%emt 0:03:08]} 6. c3 {[%emt 0:01:25] C00: French: Unusual White 2nd moves.} Bf6 {[%emt 0:01:09]} 7. O-O {[%emt 0:00:37]} Nge7 {[%emt 0:02:53]} 8. Rd1 {[%emt 0:04:46] White has an edge.} e5 {[%emt 0:01:03] [#]} 9. d3 $146 {[%emt 0:01:49]} ({Predecessor:} 9. Na3 h5 10. Nc2 Bg4 11. h3 Bxf3 12. Bxf3 h4 13. Bg4 hxg3 14. fxg3 Qc7 15. Ne3 {1-0 Reinhart,E (2298)-Kubacsny,V (2080) Stuttgart-chA int 2008 (2)}) 9... O-O {[%emt 0:03:48]} 10. Be3 {[%emt 0:00:22]} Bg4 {[%emt 0:09:56]} 11. h3 {[%emt 0:01:57]} Bc8 {[%emt 0:25:55]} 12. d4 {[%emt 0:11:47]} Qa5 {[%emt 0:02:11]} (12... exd4 $142 13. cxd4 Bxd4) 13. dxc5 {[%emt 0:19:03]} dxc5 {[%emt 0:00:26]} 14. Nbd2 {[%emt 0:02:31] White is more active.} b6 {[%emt 0:05:03]} 15. Bf1 {[%emt 0:02:19]} Be6 {[%emt 0:03:00]} (15... Qa4 $16 {is a better defense.}) 16. Bg5 {[%emt 0:02:05]} Rfd8 {[%emt 0:03:50]} (16... b5 $142 17. Nb3 (17. Qxb5 Qxb5 18. Bxb5 Bxh3 $16) 17... Qb6) 17. Bxf6 $18 {[%emt 0:02:11]} gxf6 {[%emt 0:00:19]} 18. Qe3 {[%emt 0:00:48]} Qa4 {[%emt 0:03:29]} 19. b3 {[%emt 0:04:27]} Qa3 {[%emt 0:01:24]} 20. Nc4 {[%emt 0:02:28]} Bxc4 {[%emt 0:00:11]} (20... Rxd1 $142 21. Rxd1 Qxa2) 21. Bxc4 {[%emt 0:00:14] Strongly threatening Qh6.} Na5 {[%emt 0:01:57]} 22. Bd5 {[%emt 0:09:59]} Nxd5 {[%emt 0:01:53]} 23. exd5 {[%emt 0:00:07]} c4 {[%emt 0:02:19]} 24. Nh4 {[%emt 0:04:00][%cal Od5d6]} Qf8 {[%emt 0:02:24]} 25. Nf5 {[%emt 0:02:39] Qe4 is the strong threat.} cxb3 $2 {[%emt 0:00:28]} (25... Nb7 {was called for.} 26. Qe4 (26. bxc4 Rac8 $16) 26... Nd6 27. Nxd6 Qxd6 28. Qxc4 (28. bxc4 Rac8 $16) 28... f5) 26. axb3 {[%emt 0:00:09]} Nxb3 {[%emt 0:00:14]} (26... Nb7 $142 27. Nh6+ Kh8) 27. Ra4 {[%emt 0:00:09]} Kh8 {[%emt 0:02:19]} 28. Rh4 {[%emt 0:01:56] aiming for Qf3.} Nc5 {[%emt 0:01:09]} 29. Rh6 {[%emt 0:01:07]} Nd7 {[%emt 0:01:58] [#]} 30. Rxf6 $3 {[%emt 0:05:01][%mdl 512]} a5 {[%emt 0:00:46]} (30... Nxf6 $2 31. Qxe5 $18) (30... Rdc8 31. Qe4) 31. Rh6 {[%emt 0:07:54]} (31. Qg5 $18) 31... a4 {[%emt 0:00:46]} (31... f6 $16 {was necessary.} 32. Qf3 Qf7) 32. Qe4 {[%emt 0:01:06]} Qg8 $2 {[%emt 0:00:56] [#]} (32... f6 $16) 33. Rxb6 $3 {[%emt 0:01:50][%mdl 576] Deflection} a3 {[%emt 0:01:13]} (33... Ra7 34. Rb5) 34. Ra1 {[%emt 0:05:22]} f6 {[%emt 0:01:10]} 35. Rb5 {[%emt 0:01:55]} Rdb8 {[%emt 0:04:16]} 36. Qb4 {[%emt 0:00:54]} Rxb5 {[%emt 0:03:00]} (36... a2 37. Kg2 Ra7) 37. Qxb5 {[%emt 0:00:03]} Qc8 {[%emt 0:01:09] Black is weak on the light squares} 38. Qb4 {[%emt 0:01:32]} Qc5 {[%emt 0:02:32]} 39. Qb7 {[%emt 0:01:00]} Ra7 {[%emt 0:02:06]} 40. Qc6 $40 {[%emt 0:00:00][%mdl 128] White goes for the king.} (40. Qb3 $18 {and the rest is easy. d6 would be deadly.} Qb6 41. Qc4 (41. Rxa3 Rxa3 42. Qxa3 Qb1+ 43. Kg2 Qxf5 $17)) 40... a2 $2 {[%emt 0:00:00][%mdl 8192]} (40... Qxc6 $16 41. dxc6 Nc5) 41. Qe6 {[%emt 0:04:08]} Qf8 {[%emt 0:09:59] [#]} 42. Rxa2 $3 {[%emt 0:03:42][%mdl 576] Deflection} Rxa2 {[%emt 0:01:16]} 43. Qxd7 {[%emt 0:00:06]} Ra1+ {[%emt 0:03:05]} 44. Kg2 {[%emt 0:00:35]} Rc1 {[%emt 0:02:04]} 45. Qc7 {[%emt 0:01:37]} Qg8 {[%emt 0:04:05]} 46. Qd6 {[%emt 0:00:20] Ingenious play by Zimina!   Weighted Error Value: White=0.40/Black=0.77} 1-0

[Event "European Women-ch 2023"]
[Site "Petrovac"]
[Date "2023.03.18"]
[Round "1.4"]
[White "Zaksaite, Salomeja"]
[Black "Efroimski, Marsel"]
[Result "1-0"]
[ECO "D05"]
[WhiteElo "2187"]
[BlackElo "2451"]
[Annotator "TA"]
[PlyCount "125"]
[EventDate "2023.03.15"]
[EventType "swiss"]
[EventCountry "MNE"]
[SourceTitle "playchess.com"]
[Source "ChessBase"]
[SourceQuality "1"]
[TimeControl "40/5400+30:1800+30"]

{[%evp 12,125,-6,-16,0,-11,135,129,120,128,124,111,97,103,90,102,73,79,96,69,73,0,22,0,66,0,6,0,0,-14,0,0,39,31,127,137,269,267,236,248,272,255,401,67,106,111,102,27,36,0,0,0,0,0,0,0,791,830,29986,0,29986,29987,29984,1706,1289,950,806,-237,-245,-230,-237,-230,-229,-1318,-1280,-723,-116,-101,0,0,0,0,0,-405,261,261,451,449,510,418,477,395,610,558,599,559,561,543,523,464,1017,1077,1529,1318,750,323,12844,12844,12845,12845,12845,12845,12845,12846,12848,12849]} 1. d4 {[%emt 0:00:20]} Nf6 {[%emt 0:00:29]} 2. e3 {[%emt 0:00:26]} e6 {[%emt 0:01:13]} 3. Bd3 {[%emt 0:01:48]} c5 {[%emt 0:00:23]} 4. c3 {[%emt 0:00:36]} b6 {[%emt 0:02:40]} 5. Nf3 {[%emt 0:02:55]} Bb7 {[%emt 0:00:11]} 6. Nbd2 {[%emt 0:00:36]} d5 {[%emt 0:00:11]} 7. Ne5 {[%emt 0:01:23]} Bd6 {[%emt 0:01:25] D05: Colle System with ...e6.} 8. f4 {[%emt 0:00:16]} Ne4 {[%emt 0:11:07]} (8... Qc7 $11 {keeps the balance.}) 9. Bb5+ $16 {[%emt 0:07:05]} Kf8 {[%emt 0:00:33] [#] White is better.} 10. Nxe4 $146 {[%emt 0:10:22]} ({Predecessor:} 10. Qh5 Bxe5 11. fxe5 Qg5 12. Qf3 Ke7 13. O-O Rf8 14. Nxe4 dxe4 15. Qh3 h6 16. Bd2 cxd4 17. cxd4 a5 18. Rac1 Ra6 19. Bxa6 Bxa6 20. Rc7+ Ke8 21. Rfxf7 {1-0 Anusha,N (2010)-Johannsdottir,J (1651) Wch U14 Girls 2007 (4)}) 10... dxe4 {[%emt 0:00:10]} 11. dxc5 {[%emt 0:03:56]} bxc5 {[%emt 0:01:03]} 12. O-O {[%emt 0:02:20] Strongly threatening f5.} Qc7 {[%emt 0:05:08] [#]} 13. b4 $1 {[%emt 0:08:23]} a6 {[%emt 0:34:51]} 14. Bc4 {[%emt 0:04:56]} g6 {[%emt 0:07:27]} 15. Bb2 {[%emt 0:07:33] White is much more active.} Kg7 {[%emt 0:06:02]} 16. Qe2 {[%emt 0:21:42]} (16. Nxf7 $16 Kxf7 17. Qg4) 16... Rc8 {[%emt 0:14:19]} 17. Ng4 {[%emt 0:01:08]} h5 $1 {[%emt 0:01:22]} 18. Nf2 {[%emt 0:00:09]} ({White should play} 18. Bxe6 $1 $14 fxe6 19. c4+ Kf7 20. Ne5+ Bxe5 21. fxe5+ Kg7 22. Rf6) 18... Nd7 $11 {[%emt 0:01:47]} 19. Rfd1 {[%emt 0:04:12]} Nb6 {[%emt 0:05:39]} 20. bxc5 {[%emt 0:07:57]} Bxc5 {[%emt 0:01:45] aiming for ...Nxc4.} (20... Qxc5 21. Bb3 $14) 21. Bb3 {[%emt 0:00:15]} Rd8 {[%emt 0:02:02]} 22. c4+ {[%emt 0:00:45]} Kh7 {[%emt 0:00:44]} (22... f6 $14) 23. g4 $16 {[%emt 0:00:43]} Qe7 {[%emt 0:00:34]} (23... Rd3 $16 24. Rxd3 (24. Nxd3 exd3 25. Rxd3 Qc6 $16) (24. gxh5 Rxe3 25. hxg6+ fxg6 $11) 24... exd3 25. Nxd3 Be7) 24. gxh5 $18 {[%emt 0:03:43]} Rg8 {[%emt 0:00:05]} 25. Kh1 {[%emt 0:01:59]} Qh4 {[%emt 0:01:18]} 26. Ng4 {[%emt 0:01:17] Nf6+ is the strong threat.} Be7 {[%emt 0:00:15] Prevents Nf6+} (26... gxh5 $142 27. Nf6+ Kh6 28. Nxg8+ Rxg8) 27. h6 $2 {[%emt 0:00:16]} ({White should try} 27. Ne5 $18) 27... Rad8 {[%emt 0:00:41]} 28. Ne5 {[%emt 0:02:13] Inhibits Rd3.} f6 {[%emt 0:00:16]} 29. Ng4 {[%emt 0:00:47]} (29. Rxd8 $16 Bxd8 30. Ng4 (30. c5 fxe5 31. cxb6 exf4 $11)) 29... Nd7 $11 {[%emt 0:00:10]} 30. Rg1 {[%emt 0:04:50][%cal Oc4c5] Black must now prevent c5!} f5 {[%emt 0:00:41]} 31. Ne5 {[%emt 0:00:18]} Nxe5 {[%emt 0:00:18]} 32. Bxe5 {[%emt 0:00:06][%cal Oc4c5]} Rd3 {[%emt 0:00:39] Inhibits c5.} 33. c5 {[%emt 0:01:02] Some like it hot} Bxc5 $2 {[%emt 0:00:54][%mdl 8192]} (33... Rgd8 $11 34. Qg2 (34. Bxe6 $2 Rd2 $19 {[%mdl 64] Skewer}) 34... Qh5) 34. Bxe6 $18 {[%emt 0:00:09]} Rgd8 {[%emt 0:00:36]} 35. Bf7 $2 {[%emt 0:01:00]} (35. Rxg6 {mates} Rd2 36. Bxf5 Qxh2+ 37. Kxh2 Rxe2+ 38. Rg2+ {[%mdl 64] Discovered Attack} Kxh6 39. Bg7+ Kh5 40. Bg6+ Kh4 41. Bf6#) 35... Rxe3 $2 {[%emt 0:00:12][%mdl 8192]} (35... Bxe3 $11 36. Bxg6+ (36. Rxg6 Bxf4 37. Rg7+ Kxh6 $11) 36... Kxh6) 36. Bxg6+ {[%emt 0:00:26]} Kxh6 {[%emt 0:00:07]} 37. Qb2 {[%emt 0:00:24]} (37. Bxf5 $142 Rg3 38. Rxg3 Qxg3 {[%mdl 64] Remove Defender} 39. hxg3 e3+ 40. Kg1 Rd2 41. Re1 Rxe2 42. Rxe2) 37... Qe7 {[%emt 0:01:07]} 38. Bxf5 {[%emt 0:00:36] Bg7+ would kill now.} Rg3 {[%emt 0:00:30]} 39. hxg3 $4 {[%emt 0:00:33][%mdl 8192]} (39. Rxg3 $18 {was the only winning move. White wants to mate with Rh3+.} e3+ 40. Rg2) 39... e3+ $19 {[%emt 0:00:07]} 40. Kh2 {[%emt 0:00:00]} (40. Rg2 $2 Rd2 41. Kh2 Rxg2+ 42. Qxg2 Bxg2 43. Kxg2 Qb7+ 44. Kh2 Qf3 $19) 40... Rd2+ {[%emt 0:00:00]} 41. Qxd2 {[%emt 0:12:19]} exd2 {[%emt 0:00:17]} 42. Rgd1 {[%emt 0:00:09]} (42. Rgb1 Bd4 43. Rxb7 (43. Bxd4 $2 Qe2+ $19) 43... Qxb7 44. Bxd4) 42... Qf7 {[%emt 0:17:36]} 43. Bh3 {[%emt 0:00:41]} Be3 $2 {[%emt 0:02:13]} (43... Qd5 $19 {is more deadly. ( -> ...Bf2)} 44. Bc3 Be3 45. Bxd2 Qf3 46. Bxe3 Qe2+ {[%mdl 64] Zwischenzug} 47. Kg1 Qxe3+ 48. Kf1 Qxg3) 44. Rab1 $17 {[%emt 0:01:38]} Bf3 {[%emt 0:05:20]} (44... Qd5 $1 $17 {[%cal Rd5f3] Hoping for ...Qf3.} 45. Rxb7 Qxb7) 45. Rxd2 $1 $11 {[%emt 0:02:22][%mdl 64] Deflection} Bxd2 {[%emt 0:00:10]} 46. Rb6+ {[%emt 0:00:01]} Kh7 {[%emt 0:05:12]} (46... Kh5 $5 47. Rf6 $8 Qxa2 48. Rf5+ Kh6 49. Rf6+ Kh5 50. Rf5+ Kh6 51. Rf6+ Kh5 $11) 47. Rd6 $2 {[%emt 0:02:34][%mdl 8192] [#]} (47. Rf6 $1 $11 Qe8 48. Bf5+ Kg8 49. Rg6+ Kf8 50. Rf6+ Kg8 51. Rg6+ Kf8 52. Rf6+ Kg8) 47... Qh5 $4 {[%emt 0:03:16][%mdl 8192] [#]} 48. Rd8 $1 $18 {[%emt 0:01:00]} (48. Rxd2 $2 Bg4 49. Kg1 Bxh3 $19) 48... Qf7 $2 {[%emt 0:00:53]} (48... Kg6 49. Rh8 (49. Rxd2 $2 {too greedy.} Bg4 $19) 49... Bg4 50. Rxh5 Kxh5) 49. Rd7 {[%emt 0:02:26]} ({Weaker is} 49. Rxd2 Bc6 $16) 49... Qxd7 {[%emt 0:00:19]} 50. Bxd7 {[%emt 0:00:03][%mdl 4096] Endgame KBB-KBB} Kg6 {[%emt 0:00:14]} 51. Kh3 {[%emt 0:03:14]} a5 {[%emt 0:00:10]} (51... Bd5 $142 52. a3 Kf7) 52. Kh4 {[%emt 0:00:21]} Be4 {[%emt 0:01:14]} 53. Be8+ {[%emt 0:01:33]} Kh6 {[%emt 0:00:05]} 54. Kg4 {[%emt 0:00:34]} Bc2 {[%emt 0:00:22]} 55. a4 {[%emt 0:00:20]} Bd1+ {[%emt 0:01:01]} (55... Bd3 $142 56. Kf3 Bc2) 56. Kf5 {[%emt 0:01:06] Threatens to win with g4.} Bc2+ {[%emt 0:00:10]} 57. Kf6 {[%emt 0:01:07]} Bd1 {[%emt 0:00:46]} 58. f5 {[%emt 0:00:12][%cal Bf4f5,Bf5f6][%mdl 32] And now Bf4+ would win.} Bb3 $2 {[%emt 0:00:39]} (58... Bb4 59. Bf4+ Kh7) 59. Bf4+ {[%emt 0:00:23] White is clearly winning.} Bxf4 {[%emt 0:00:06]} 60. gxf4 {[%emt 0:00:04]} Bc2 {[%emt 0:00:14]} 61. Bd7 {[%emt 0:00:53]} Kh7 {[%emt 0:00:13]} 62. Ke7 {[%emt 0:00:06]} Kg8 {[%emt 0:00:47]} 63. f6 {[%emt 0:00:08] A wild game. Beautiful play by Zaksaite!   Weighted Error Value: White=0.56/Black=0.76} 1-0

[Event "European Women-ch 2023"]
[Site "Petrovac"]
[Date "2023.03.18"]
[Round "1.4"]
[White "Petrova, Irina"]
[Black "Zawadzka, Jolanta"]
[Result "1-0"]
[ECO "B30"]
[WhiteElo "2123"]
[BlackElo "2391"]
[Annotator "TA"]
[PlyCount "63"]
[EventDate "2023.03.15"]
[EventType "swiss"]
[EventCountry "MNE"]
[SourceTitle "playchess.com"]
[Source "ChessBase"]
[SourceQuality "1"]
[TimeControl "40/5400+30:1800+30"]

{[%evp 9,63,25,25,28,72,24,21,6,15,26,20,29,25,1,19,0,0,0,0,0,8,8,8,8,8,10,45,0,16,0,138,146,173,160,640,638,632,629,612,609,1006,821,816,787,804,787,735,704,865,861,29971,29971,29982,29983,29973,605]} 1. e4 {[%emt 0:00:05]} c5 {[%emt 0:00:45]} 2. Nf3 {[%emt 0:00:05]} e6 {[%emt 0:00:06]} 3. b3 {[%emt 0:01:04]} Nc6 {[%emt 0:00:09]} 4. Bb5 {[%emt 0:01:17]} d6 {[%emt 0:08:55]} 5. Bxc6+ {[%emt 0:01:12]} bxc6 {[%emt 0:01:41]} 6. O-O {[%emt 0:02:43] B30: Sicilian: 2...Nc6 3 Bb5, lines without ...g6.} g6 {[%emt 0:07:00]} 7. Bb2 {[%emt 0:02:23]} (7. e5 $16) 7... e5 $11 {[%emt 0:00:11] [#]} 8. c3 $146 {[%emt 0:09:46] The position is equal.} ({Predecessor:} 8. d3 Bg7 9. Nbd2 Ne7 10. Nc4 O-O 11. c3 Bg4 12. h3 Be6 13. Qe2 Rb8 14. Rad1 {1-0 Petrova,I (2123)-Toncheva,N (2192) Titled Tuesday intern op 28th Feb Early blitz 2023 (11)}) 8... Bg7 {[%emt 0:01:58]} 9. d4 {[%emt 0:02:27]} exd4 {[%emt 0:04:22]} 10. cxd4 {[%emt 0:02:22] Black must now prevent Qc1.} Bg4 $1 {[%emt 0:00:30]} 11. Nbd2 {[%emt 0:09:24] Qc2 would be deadly.} cxd4 {[%emt 0:02:56]} 12. Nc4 {[%emt 0:12:40][%cal Of1e1]} c5 {[%emt 0:08:15]} 13. e5 {[%emt 0:05:37]} dxe5 {[%emt 0:06:06]} 14. Ncxe5 {[%emt 0:01:17]} (14. h3 Bxf3 15. Qxf3 Rc8 $17) 14... Bxe5 {[%emt 0:03:33] This pair of bishops is nice.} 15. Qe1 $1 {[%emt 0:00:05]} Bxf3 {[%emt 0:28:32]} 16. Qxe5+ {[%emt 0:00:12]} Qe7 $1 {[%emt 0:00:46]} 17. Qxh8 {[%emt 0:11:23]} Qg5 $1 {[%emt 0:01:01][%csl Gf3][%cal Rg5g2]} 18. g3 {[%emt 0:02:28] Really sharp!} (18. Qxg8+ $2 Ke7 19. g3 Rxg8 $19) 18... O-O-O {[%emt 0:00:29]} 19. Rac1 {[%emt 0:02:07]} Bc6 {[%emt 0:03:23] [#]} (19... Nh6 $11 20. Qg7 (20. Qxh7 d3 $17) 20... Bc6) 20. Ba3 $1 $36 {[%emt 0:02:40][%mdl 2048] White is really pushing.} Ne7 {[%emt 0:07:51]} 21. Rxc5 {[%emt 0:11:15]} ({Don't play} 21. Qxh7 $6 Qd5 22. f3 (22. Bxc5 $2 Qh1#) 22... d3 $11) 21... Qg4 $2 {[%emt 0:02:32]} (21... Rxh8 $16 22. Rxg5 {[%mdl 64] Discovered Attack} Nf5) 22. Qf6 $18 {[%emt 0:01:20]} ({Not} 22. Qxh7 Qf3 23. Qh3+ Kb7 24. Rxc6 Nxc6 $14) 22... Qe4 {[%emt 0:00:14][%csl Gc6][%cal Re4h1]} 23. f3 {[%emt 0:03:27]} (23. Qxf7 $2 Qh1#) 23... Qe3+ {[%emt 0:00:05]} 24. Kg2 {[%emt 0:00:04]} Rd7 {[%emt 0:09:08]} 25. Rxc6+ {[%emt 0:00:57]} Nxc6 {[%emt 0:00:04]} 26. Qxc6+ {[%emt 0:00:03]} Rc7 {[%emt 0:00:04]} 27. Qa6+ {[%emt 0:00:04]} Kd8 {[%emt 0:00:20]} 28. Rf2 {[%emt 0:00:44] [#] Strongly threatening Re2.} d3 {[%emt 0:00:27] Against Re2} 29. Bb4 {[%emt 0:02:47]} Rc2 {[%emt 0:01:12]} 30. Qd6+ {[%emt 0:00:14] White mates.} Ke8 {[%emt 0:01:18]} 31. Rxc2 {[%emt 0:00:12]} dxc2 {[%emt 0:00:04]} 32. Qc6+ {[%emt 0:00:04] Excellently played by Petrova!   Weighted Error Value: White=0.09 (flawless) /Black=0.56} (32. Qb8+ $142 Kd7 33. Qb7+ {[%mdl 64] Skewer} Kd8 34. Ba5+ (34. Qxf7 $2 {too greedy.} c1=Q $19) 34... Qb6 35. Bxb6+ axb6 36. Qxb6+ Kd7 37. Qc5) 1-0